Cogmind - Beta 13 @@@ ROGUE MODE // 2024.04.04 @ 01:14:41 Player: Camoedine Result: Destroyed by Y-45 Defender with Beam Rifle Performance ------------- Evolutions (2) 1000 Regions Visited (3) 600 Robots Destroyed (100) 500 Value Destroyed (2823) 2823 Prototype IDs (3) 60 Alien Tech Used (0) 0 Bonus (187) 187 TOTAL SCORE: 5170 Bonus ------- High Alert Combat Kills 187 Cogmind --------- Core Integrity 0/550 Matter 169/300 Energy 220/220 System Corruption 10% Temperature Cool (31) Movement Rolling (150) Ox4 Location -8/Materials Parts ------- > --- POWER (2) -------- Light Nuclear Core Light Nuclear Core > --- PROPULSION (2) --- Armored Wheel Armored Wheel > --- UTILITY (4) ------ Huge Storage Unit Advanced Targeting Computer Hacking Suite Corruption Screen > --- WEAPON (3) ------- Improved Grenade Launcher Chainsword > --- INVENTORY (25) --- Reinforced Deuterium Engine Reinforced Deuterium Engine Reinforced Deuterium Engine Reinforced Deuterium Engine Armored Wheel Armored Wheel Huge Storage Unit Particle Charger Reaction Control System Light Armor Plating Light Armor Plating Hardened Medium Armor Plating System Shield EM Pulse Cannon Flak Cannon Great Maul Chainsword Peak State ------------ > --- POWER ------------ Light Nuclear Core Light Nuclear Core > --- PROPULSION ------- Carbon-fiber Leg Carbon-fiber Leg > --- UTILITY ---------- Huge Storage Unit Advanced Targeting Computer Hacking Suite Corruption Screen > --- WEAPON ----------- Improved Grenade Launcher Improved Grenade Launcher Improved Grenade Launcher > --- INVENTORY -------- Light Nuclear Core Light Nuclear Core Reinforced Deuterium Engine Reinforced Deuterium Engine Reinforced Deuterium Engine Reinforced Deuterium Engine Carbon-fiber Leg Armored Wheel Armored Wheel Armored Wheel Armored Wheel Huge Storage Unit Particle Charger Reaction Control System Light Armor Plating Light Armor Plating Hardened Medium Armor Plating System Shield EM Pulse Cannon Flak Cannon Improved Grenade Launcher Improved Grenade Launcher Great Maul Chainsword Chainsword [Rating: 39] Favorites ----------- Power Light Ion Engine Engine Light Ion Engine Power Core Light Nuclear Core Propulsion Aluminum Leg Treads Light Treads Leg Aluminum Leg Wheel Armored Wheel Utility Huge Storage Unit Device Heat Sink Storage Huge Storage Unit Processor Targeting Computer Hackware Hacking Suite Protection Propulsion Shielding Weapon Autogun Energy Gun Beam Rifle Ballistic Gun Autogun Launcher Improved Grenade Launcher Impact Weapon Great Maul Slashing Weapon Katana Build | -11 -10 -9 -8 ------- Run | Yrd Mat Mat Mat Slots Evolved 4 | . . 2 2 Power 1 | . . . 1 Propulsion . | . . . . Utility 2 | . . 1 1 Weapon 1 | . . 1 . Parts Attached 76 | 5 7 19 45 Power 15 | 1 1 3 10 Engine 8 | 1 1 3 3 Core 7 | . . . 7 Reactor . | . . . . Propulsion 20 | 2 1 6 11 Treads 5 | . . 2 3 Leg 13 | 2 1 4 6 Wheel 2 | . . . 2 Hover . | . . . . Flight . | . . . . Utility 16 | . 3 5 8 Device 2 | . 1 . 1 Storage 4 | . 1 3 . Processor 5 | . . 1 4 Hackware 1 | . . . 1 Protection 4 | . 1 1 2 Artifact . | . . . . Weapon 25 | 2 2 5 16 Energy Gun 6 | 1 2 . 3 Energy Cannon . | . . . . Ballistic Gun 10 | 1 . 5 4 Ballistic Cannon . | . . . . Launcher 5 | . . . 5 Special Weapon . | . . . . Impact Weapon 1 | . . . 1 Slashing Weapon 3 | . . . 3 Piercing Weapon . | . . . . Special Melee Weapon . | . . . . Unidentified Prototypes . | . . . . Parts Lost 24 | . 1 6 17 Power 6 | . 1 1 4 Propulsion 5 | . . 1 4 Utility 4 | . . 1 3 Weapon 9 | . . 3 6 Highest Loss Streak 7 | . 1 4 7 To Critical Strikes 1 | . . . 1 Average Slot Usage (%) 95 | . 98 94 95 Engine 10 | . 13 10 7 Core 4 | . . . 9 Treads 4 | . . 3 6 Leg 16 | . 28 18 9 Device 4 | . 13 . 2 Storage 10 | . 13 11 9 Processor 9 | . . 10 13 Hackware 2 | . . . 4 Protection 4 | . . 8 3 Energy Gun 10 | . 26 8 3 Ballistic Gun 14 | . 1 22 15 Launcher 2 | . . . 4 Slashing Weapon 1 | . . . 2 Naked Turns . | . . . . Heaviest Build 108 | 6 50 97 108 Greatest Support 51 | 20 20 40 51 Greatest Overweight (x) 8 | . 2 4 8 Average Overweight (x) 2 | . 1 2 2 Largest Inventory Capacity 25 | 5 20 25 25 Average Capacity 22 | 5 19 22 25 Most Carried 25 | 4 11 25 25 Average Carried 18 | 2 7 19 23 Final Capacity 25 | 5 20 25 25 Final Carried 25 | 4 8 25 17 Class Distribution -------------------- 42% | Gunner 34% | Mutant 13% | Scavenger-Gunner 8% | Scavenger-Mutant Dominant Class ---------------- Mutant | -10/Materials Gunner | -9/Materials Gunner | -8/Materials Resources | -11 -10 -9 -8 ----------- Run | Yrd Mat Mat Mat Matter Collected 2355 | 251 234 483 1387 Remotely . | . . . . Salvage Created 3426 | 38 307 1006 2075 Parts 194 | 1 12 64 117 Haulers Intercepted 1 | . . . 1 Recyclers Shooed 4 | . . 3 1 Parts Field Recycled . | . . . . Retrieved Matter . | . . . . Parts Self-Destructed . | . . . . Prevented . | . . . . Kills | -11 -10 -9 -8 ------- Run | Yrd Mat Mat Mat Combat Hostiles Destroyed 69 | 1 7 19 42 Melee 1 | . . . 1 Guns 54 | 1 6 19 28 AOE 13 | . . . 13 Classes Destroyed 13 | 1 3 5 4 Worker 8 | . 1 1 6 Builder 6 | . . 1 5 Hauler 1 | . . . 1 Recycler 5 | . . 4 1 Mechanic 2 | . . . 2 Operator 2 | . . 1 1 Watcher 7 | . 2 2 3 Swarmer 14 | . 3 4 7 Grunt 38 | 1 4 12 21 Brawler 3 | . . . 3 Duelist 2 | . . 1 1 Sentry 11 | . . 2 9 Hunter 1 | . . . 1 Best Kill Streak 13 | 1 5 6 13 Combat Bots Only 6 | 1 3 4 6 Max Kills in Single Turn 8 | 1 1 3 8 Gunslinging 2 | . . 2 1 Exploded 4 | . . . 4 Melee 1 | . . . 1 Uniques/NPCs Destroyed . | . . . . Combat | -11 -10 -9 -8 -------- Run | Yrd Mat Mat Mat Hostile Shots Fired 400 | 1 53 89 257 Missed 109 | . 15 32 62 Damage Taken 4537 | 11 442 770 3314 Core 804 | . 157 90 557 Absorbed by Shields . | . . . . Redirected to Shielding 51 | . . 51 . Core Remaining (%) 71 | 100 37 77 . Volleys Fired 194 | 1 35 51 107 Largest 3 | 2 2 3 3 Hottest 112 | 60 112 102 111 Shots Fired 452 | 2 70 122 258 Gun 424 | 2 70 122 230 Cannon . | . . . . Launcher 28 | . . . 28 Special . | . . . . Kinetic 279 | 1 11 81 186 Thermal 106 | . 48 41 17 Explosive 28 | . . . 28 Electromagnetic 39 | 1 11 . 27 Robot Hit Streak 22 | 1 7 10 22 Robot Miss Streak 6 | . 5 6 5 Penetration Max . | . . . . Secondary Targets 10 | . 1 5 4 Max Gunslinging Chain 2 | . 1 2 1 Shots Hit Robots 285 | 1 31 76 177 Core Hits 171 | 1 14 39 117 Critical Kills 1 | . . 1 . Critical Parts Destroyed 1 | . . . 1 Critical Strikes 6 | . 2 2 2 Burn 3 | . 2 1 . Destroy 2 | . . 1 1 Sever 1 | . . . 1 Melee Attacks 3 | . . . 3 Impact . | . . . . Slashing 3 | . . . 3 Piercing . | . . . . Sneak Attacks . | . . . . Combat Hostiles . | . . . . Follow-up Attacks . | . . . . Damage Inflicted 6161 | 15 460 1196 4490 Guns 3985 | 15 434 1196 2340 Cannons . | . . . . Explosions 2044 | . 26 . 2018 Melee 108 | . . . 108 Ramming 24 | . . . 24 Kinetic 2688 | . 55 784 1849 Thermal 1035 | . 346 412 277 Explosive 1934 | . . . 1934 Electromagnetic 372 | 15 59 . 298 Impact . | . . . . Slashing 108 | . . . 108 Piercing . | . . . . Highest Corruption 10 | . 2 . 10 Average Corruption 6 | . 2 . 9 Corruption Purged . | . . . . Corruption Blocked . | . . . . Effects 73 | . 8 . 65 Message Errors 9 | . . . 9 Matter Fused 17 | . 2 . 15 Heat Flow Errors 8 | . 1 . 7 Energy Discharges 10 | . 2 . 8 Parts Rejected 1 | . . . 1 Parts Fused 2 | . . . 2 Data Loss (minor) 11 | . 2 . 9 Data Loss (major) 2 | . . . 2 Misfires 3 | . . . 3 Alerts 3 | . 1 . 2 Misdirections 1 | . . . 1 Weapon Failures 6 | . . . 6 Overload Shots . | . . . . Overflow Damage 91 | . . . 91 Projectiles . | . . . . Explosions 79 | . . . 79 Melee 12 | . . . 12 Knockbacks . | . . . . Impact . | . . . . Kinetic . | . . . . Secondary . | . . . . Self-Inflicted Damage 362 | . . . 362 Shots 11 | . . . 11 Rammed 1 | . . . 1 Targets Rammed 3 | . . . 3 Kicked 2 | . . . 2 Crushed . | . . . . Highest Temperature 378 | 26 155 150 378 Average Temperature 82 | 16 43 40 103 Received Heat Transfer 1845 | 6 117 300 1422 Effects 6 | . . . 6 Shutdowns 1 | . . . 1 Energy Bleed 4 | . . . 4 Damage (minor) 1 | . . . 1 Siege Activations . | . . . . Robots Corrupted . | . . . . Combat Hostiles . | . . . . Parts Fried 1 | . . . 1 Impact Corruptions . | . . . . Robots Melted 1 | . 1 . . Combat Hostiles 1 | . 1 . . Parts Melted 4 | . 3 1 . Heat Transferred 2566 | . 962 1110 494 Parts Sabotaged . | . . . . Parts Stolen . | . . . . Parts Stripped . | . . . . Power Chain Reactions 2 | . 1 . 1 Alert | -11 -10 -9 -8 ------- Run | Yrd Mat Mat Mat Peak Influence 882 | 20 177 182 882 Initial 31 | . 13 8 31 Average 133 | 4 55 91 200 Maximum Alert Level 3 | . . . 3 Low Security (%) 86 | 100 100 100 72 Level 1 5 | . . . 11 Level 2 4 | . . . 9 Level 3 3 | . . . 7 Level 4 . | . . . . Level 5 . | . . . . High Security . | . . . . Max Security . | . . . . Squads Dispatched 20 | . 3 4 13 Investigation 3 | . 1 1 1 Extermination . | . . . . Reinforcement 10 | . 2 3 5 Assault 1 | . . . 1 Garrison 6 | . . . 6 Intercept . | . . . . Searches Triggered . | . . . . Construction Impeded 1 | . . . 1 Haulers Reinforced . | . . . . Active Scanning Responses . | . . . . Cargo Convoy Interrupts . | . . . . Stealth | -11 -10 -9 -8 --------- Run | Yrd Mat Mat Mat Distress Signals 5 | . 1 2 2 Communications Jammed . | . . . . Distress Signals . | . . . . Times Spotted 105 | 1 14 26 64 Peak Tracking Total 6 | 1 3 4 6 Tactical Retreats 4 | . 1 . 3 Traps | -11 -10 -9 -8 ------- Run | Yrd Mat Mat Mat Traps Triggered 5 | . 3 1 1 Indirectly . | . . . . Trap Hack Attempts . | . . . . Triggered . | . . . . Disarmed . | . . . . Reprogrammed . | . . . . Reused . | . . . . Traps Extracted . | . . . . Installed . | . . . . Triggered . | . . . . Machines | -11 -10 -9 -8 ---------- Run | Yrd Mat Mat Mat Machines Disabled 5 | . 1 . 4 Max in Single Turn 2 | . 1 . 2 Machines Repaired . | . . . . Machines Dismantled . | . . . . Machines Sabotaged . | . . . . Overloaded Fab Kills . | . . . . Hacking | -11 -10 -9 -8 --------- Run | Yrd Mat Mat Mat Machines Accessed 7 | . 4 1 2 Terminals 5 | . 4 . 1 Fabricators . | . . . . Repair Stations . | . . . . Recycling Units . | . . . . Scanalyzers 1 | . . 1 . Garrison Access 1 | . . . 1 Total Hacks 24 | . 15 4 5 Successful 15 | . 8 3 4 Failed 9 | . 7 1 1 Catastrophic . | . . . . Database Lockouts . | . . . . Manual . | . . . . Terminals 19 | . 15 . 4 Fabricators . | . . . . Repair Stations . | . . . . Recycling Units . | . . . . Scanalyzers 4 | . . 4 . Garrison Access 1 | . . . 1 Terminal Hacks 11 | . 8 . 3 Record 6 | . 3 . 3 Prototype ID Bank 1 | . 1 . . Alert Level 1 | . 1 . . Assault Status 1 | . 1 . . Zone Layout 2 | . 2 . . Fabricator Hacks . | . . . . Repair Station Hacks . | . . . . Recycling Unit Hacks . | . . . . Scanalyzer 3 | . . 3 . Insert Component 2 | . . 2 . Analyze 1 | . . 1 . Garrison Access Hacks 1 | . . . 1 Unlock Access 1 | . . . 1 Unauthorized Hacks . | . . . . Terminals . | . . . . Fabricators . | . . . . Repair Stations . | . . . . Recycling Units . | . . . . Scanalyzers . | . . . . Garrison Access . | . . . . Data Cores Recovered . | . . . . Used . | . . . . Hacking Detections 7 | . 4 1 2 Full Trace Events 4 | . 3 . 1 Feedback Events . | . . . . Feedback Blocked . | . . . . Robot Schematics Acquired . | . . . . Robots Built . | . . . . Authchips . | . . . . Time . | . . . . Total Robot Build Rating . | . . . . Part Schematics Acquired 1 | . . 1 . Parts Built . | . . . . Authchips . | . . . . Time . | . . . . Total Part Build Rating . | . . . . Parts Repaired . | . . . . Time . | . . . . Parts Recycled . | . . . . Recycled Matter . | . . . . Retrieved Matter . | . . . . Retrieved Components . | . . . . Parts Scanalyzed 1 | . . 1 . Part Schematics Acquired 1 | . . 1 . Parts Damaged . | . . . . Bothacking | -11 -10 -9 -8 ------------ Run | Yrd Mat Mat Mat Used RIF Installer . | . . . . Robots Hacked . | . . . . Non-combat . | . . . . Combat . | . . . . Robot Hacks Applied . | . . . . Relay Couplers Released . | . . . . Fabnet Peak Effective % . | . . . . Robots Rewired . | . . . . Allies Hacked . | . . . . Hacks Repelled . | . . . . Allies | -11 -10 -9 -8 -------- Run | Yrd Mat Mat Mat Total Allies . | . . . . Largest Group . | . . . . Highest-Rated Group . | . . . . Highest-Rated Ally . | . . . . Total Orders . | . . . . Ally Attacks . | . . . . Total Damage . | . . . . Kills . | . . . . Allies Corrupted . | . . . . Allies Melted . | . . . . Intel | -11 -10 -9 -8 ------- Run | Yrd Mat Mat Mat Robot Analysis Total . | . . . . Derelict Logs Recovered . | . . . . Drone Launches . | . . . . Drone Recoveries . | . . . . Exploration | -11 -10 -9 -8 ------------- Run | Yrd Mat Mat Mat Turns Passed 5689 | 102 1343 1509 2735 Spaces Moved 1666 | 87 490 414 675 Core 27 | 27 . . . Treads 325 | . . 73 252 Legs 1281 | 60 490 341 390 Wheels 33 | . . . 33 Hover . | . . . . Flight . | . . . . Fastest Speed 50 | 50 120 260 150 Average Speed 288 | 98 247 313 328 Slowest Speed 810 | 120 260 400 810 Overloaded Moves . | . . . . Propulsion Burnouts . | . . . . Robots Hopped . | . . . . Cave-ins Triggered . | . . . . Exploration Rate (%) 38 | 5 63 37 48 Regions Visited 3 Branch Regions . Pre-discovered Areas . | . . . . Known Exits Taken . | . . . . Unknown Exits Taken 3 | 1 1 1 . Scrap Searched . | . . . . Spaces Dug . | . . . . Terrain Destroyed 169 | . 3 . 166 Melee . | . . . . Projectile . | . . . . AOE 169 | . 3 . 166 Terrain Rammed . | . . . . Walls Destroyed . | . . . . Machines Disabled . | . . . . Actions | -11 -10 -9 -8 --------- Run | Yrd Mat Mat Mat Total 2200 | 101 556 538 1005 Wait 101 | . 4 . 97 Move 1663 | 86 489 413 675 Hop . | . . . . Pick Up 97 | 9 14 38 36 Fast Attach 7 | . . . 7 Attach 40 | 5 5 9 21 Detach . | . . . . Swap 29 | . 2 10 17 Drop 63 | . 7 17 39 Fire 194 | 1 35 51 107 Melee 3 | . . . 3 Ram . | . . . . Kick 2 | . . . 2 Crush 1 | . . . 1 Escape Stasis . | . . . . Rewire . | . . . . Trap . | . . . . Miscellaneous . | . . . . Route ------- -11/Scrapyard -10/Materials (discovered 3 exits: *Mat x2 / [*Min]) -9/Materials -8/Materials (discovered 1 exit: Gar) History --------- Turn | Location | Event 2 | -11/Scrapyard | Met Revision 17 72 | -11/Scrapyard | Discovered new exit (range 8) 103 | -11/Scrapyard | Entered Materials 318 | -10/Materials | Build established: Mutant 545 | -10/Materials | Discovered new exit (range 14) 761 | -10/Materials | Discovered new exit (range 16) 1003 | -10/Materials | Core integrity fell below 50% 1034 | -10/Materials | Discovered new exit (range 15) 1446 | -10/Materials | Entered another Materials area 1446 | -9/Materials | Evolved 2 slots: Utility x1, Weapon x1 1674 | -9/Materials | Lost 4 parts (1p1n2w) 1950 | -9/Materials | Build established: Gunner 2816 | -9/Materials | Discovered new exit (range 12) 2955 | -9/Materials | Entered another Materials area 2955 | -8/Materials | Evolved 2 slots: Power x1, Utility x1 3266 | -8/Materials | Build established: Scavenger-Gunner 4032 | -8/Materials | Build established: Scavenger-Mutant 4074 | -8/Materials | System corruption reached 10% 4133 | -8/Materials | Lost 7 parts (2p1n2u2w) 4426 | -8/Materials | Build established: Gunner 4894 | -8/Materials | Garrison activated, responded to threat 4908 | -8/Materials | Core integrity fell below 50% 5197 | -8/Materials | Identified exit to Garrison 5355 | -8/Materials | First assault squad dispatched 5480 | -8/Materials | Garrison activated, responded to threat 5545 | -8/Materials | Core integrity fell below 20% 5572 | -8/Materials | Lost 5 parts (2p1n2w) 5690 | -8/Materials | Destroyed by Y-45 Defender with Beam Rifle Last Messages --------------- 05678_ U-05 Engineer builds a Wall. 05679_ U-05 Engineer lays Concrete. 05680_ The unstable cave ceiling collapses. 05680_ U-05 Engineer lays Concrete. 05681_ U-05 Engineer builds a Wall. 05682_ K-01 Serf collects debris. 05683_ U-05 Engineer lays Concrete. 05685_ U-05 Engineer builds a Wall. 05686_ K-01 Serf destroyed. 05686_ U-05 Engineer lays Concrete. 05687_ The unstable cave ceiling collapses. 05687_ Imp. Grenade Launcher destroyed. 05687_ U-05 Engineer lays Concrete. 05688_ U-05 Engineer builds a Wall. 05689_ K-01 Serf collects debris. 05689_ U-05 Engineer lays Concrete. [Achievement: 5k Club] Important note for Steam players: Cogmind player global achievement rates displayed by Steam are all significantly underreported, in some cases by a huge margin, due to how they are calculated by Valve. Map ----- +----------------------------------------------------+ | ## #?# #?? # T #?????????????????? | | !## #?# #?? ! # #?????????????????? | | ## #?# #?# # #?????????????????? | | !## #?# #?# # #?????????????????? | | !## #?# #?# # == #?????????????????? | | ## ! #?# #?# # == ##????????????????? | | # ### ######## =![ #????????????????? | | # ! + + ! =*% ##????????????????? | | ############ ######## % %!= #?????????????????? | | #??????????# #??????#####+#####????????????????? | | #??????????# #?????????#= [![ #??????????# ????? | | =##??????????# #?????????#[=== #??????????# ##### | | %#???????????# #?????????+ * #??????????#! # | | [#???????????#^#???????? # ##+###?####???# | | +???????????#^#???????" # t#? ? ???# | | #???????????# #??????""?# ## ? "#??# | | #???????????# #????? ??# ## """ T#??? ? | | ##########??# ########+## ## """"" "#???# #? | | * ## """"" #???# #? | | ######?????############# ## """"" #???# #? | | #?????????????########## ## """ #???# ## | | #?????????????# # ##! ##### | | #?????????????# # =######+## ### # * | | ###?????????????# ! [## u # * | | "" ?????????????#! ]]] %* ! * | | """ #???????????# @ ! = = = = | | " #???????????# =] [ m ] %= | | #???????????# Y #u ! ###+### ## | | #???????????# ######## # ## | | #???????????# " # # # [ * | | #####???????????###">" "T # # # =*%% | | #?????????????????#"G" ## ! k# # # [ | | #?????????????????#"""#?## # ###### !# | | #?????????????????#####??# [ [###?### # | | #????????????????????????########????# ####+# | | #????????????????????????????????????# # # | | #????????????????????????????????????##### "" | | #????????????????????????????????????????# """ | | #????????????????????????????????????????# """ | | #????????????????????????????????????????# ! | | #????????????????????????????????????????# """ | | ?????????????????????????????????????????# """ ! | | ?????????????????????????????????????????# """ | | ?????????????????????????????????????????# ? | | ?????????????????????????????????????????###??###? | | ?????????????????????????????????????????????????? | | ?????????????????????????????????????????????????? | | ?????????????????????????????????????????????????? | | ?????????????????????????????????????????????????? | | ?????????????????????????????????????????????????? | +----------------------------------------------------+ Best States ------------- Heat Dissipation 35 Energy Generation 23 Energy Capacity 460 Matter Stores 300 Matter Capacity 300 Sight Range 16 Terrain Scan Density 10 Additional Mass Support 9 Corruption Block 8 Armor Coverage 150 Propulsion Shielding 33 Evasion (%) 55 Targeting Accuracy 13 Recoil Reduction 2 Offensive Hacking 10 Item Schematics ----------------- Imp. Assault Rifle | -9/Materials | Scanalyzed Robot Schematics ------------------ None Fabricated ------------ Nothing Alien Tech Used ----------------- None Achievements -------------- 5k Club Gunslinger It's Just You Loot Pinata Oops Safety First Significant Disruption System Compromised Troublemaker Challenges ------------ None Game ------ Seed GravitonNeutrinoDerivative Manual? 0 Play Time 00:48:38 Cumulative 1.6 hours Start 2024.04.04 @ 00:27:47 End 2024.04.04 @ 01:14:41 Sessions 1 Manual Loads 0 Difficulty Rogue Special Mode None Game No. 3 Rogue 3 Adventurer 0 Explorer 0 Win Type - Total 0 Types 0/0/0/0/0/0/0/0/0 Lore% 1 Gallery% 5 Achievement% 5 Wizard Run 0 Options --------- Layout 0 ASCII 0 Keyboard 0 Movement Mouse Keybinds 0 Fullscreen 2 Font 24/X11 Map View 76x50 Zoom Use 0% Tactical HUD 1 Map Filters NONE Filters NONE Steam 1 RUN: f05627dd-f4e6-49e8-80bb-4bc7f8654b21